bitfinex/quotes_BTCUSD_20241216
["timestamp","ask_amount","ask_price","bid_price","bid_amount"]
[1734339241490,24.00077627,104460.0,104450.0,0.98708137]
[1734339241731,24.00077627,104460.0,104450.0,0.92479364]
[1734339241860,24.07967627,104460.0,104450.0,0.92479364]
[1734339242383,24.07967627,104460.0,104450.0,0.91978683]
[1734339242615,24.07967627,104460.0,104450.0,0.74788399]
[1734339244025,24.07967627,104460.0,104450.0,0.81017172]
[1734339245867,24.07967627,104460.0,104450.0,0.74788399]
[1734339248899,24.07967627,104460.0,104450.0,0.91978683]
[1734339249103,24.07967627,104460.0,104450.0,0.74788399]
[1734339250537,24.07967627,104460.0,104450.0,0.91978683]
[1734339250727,24.07967627,104460.0,104450.0,0.74788399]
[1734339252384,24.07967627,104460.0,104450.0,0.91978683]
[1734339252780,24.07967627,104460.0,104450.0,0.98207456]
[1734339254892,24.07967627,104460.0,104450.0,0.91978683]
[1734339255948,24.22286697,104460.0,104450.0,0.91978683]
[1734339256143,24.23192211,104460.0,104450.0,0.74788399]
[1734339258885,24.23192211,104460.0,104450.0,0.61895686]
[1734339259660,24.22286697,104460.0,104450.0,0.61895686]
[1734339259854,24.22286697,104460.0,104450.0,0.74802991]
[1734339260388,24.22286697,104460.0,104450.0,0.81031764]
[1734339262032,24.22286697,104460.0,104450.0,0.74802991]
[1734339264320,24.22286697,104460.0,104450.0,0.74803971]
[1734339265135,24.22286697,104460.0,104450.0,0.92006713]
[1734339265339,24.22286697,104460.0,104450.0,0.74803971]
[1734339268843,24.22286697,104460.0,104450.0,0.74805754]
[1734339270192,24.22286697,104460.0,104450.0,0.92009922]
[1734339270397,24.22286697,104460.0,104450.0,0.74805754]
[1734339271299,24.22782697,104460.0,104450.0,0.74805754]
[1734339271519,24.22782697,104460.0,104450.0,0.42757614]
[1734339271720,24.22782697,104460.0,104450.0,0.6240263]
[1734339272070,24.22782697,104460.0,104450.0,0.53800546]
[1734339272246,24.22782697,104460.0,104450.0,0.62403476]
[1734339274168,24.22782697,104460.0,104450.0,0.53800546]
[1734339277141,24.29916984,104460.0,104450.0,0.19653646]
[1734339277972,24.23688211,104460.0,104450.0,0.19653646]
[1734339288402,24.29916984,104460.0,104450.0,0.19653646]
[1734339289666,24.29916984,104460.0,104450.0,0.19153646]
[1734339292237,24.36145757,104460.0,104450.0,0.00498116]
[1734339292432,24.73020211,104460.0,104450.0,0.00498116]
[1734339292649,24.73020211,104460.0,104440.0,0.0004]
[1734339292650,0.1263,104450.0,104440.0,0.0004]
[1734339292853,0.28407536,104450.0,104440.0,0.00363031]
[1734339292996,0.28287843,104450.0,104440.0,0.00363031]
[1734339293201,0.49664681,104450.0,104440.0,0.00363031]
[1734339293669,0.36838578,104450.0,104440.0,0.00363031]
[1734339293829,0.55986478,104450.0,104440.0,0.00363031]
[1734339294013,0.55986478,104450.0,104440.0,0.00371661]
[1734339294634,0.30609805,104450.0,104440.0,0.00371661]
[1734339294874,0.36838578,104450.0,104440.0,0.0004863]
[1734339295042,0.36838578,104450.0,104440.0,0.1728333]
[1734339295891,0.30609805,104450.0,104440.0,0.1728333]
[1734339296088,0.36838578,104450.0,104440.0,0.1728333]
[1734339296840,0.28287843,104450.0,104440.0,0.1728333]
[1734339297298,0.47435743,104450.0,104440.0,0.0004863]
[1734339297486,0.2205907,104450.0,104440.0,0.0004863]
[1734339297716,0.28287843,104450.0,104440.0,0.0004863]
[1734339299347,0.28287843,104450.0,104440.0,0.1728333]
[1734339300221,0.28287843,104450.0,104440.0,0.0004863]
[1734339300222,0.29357202,104450.0,104440.0,0.0004863]
[1734339300635,0.29357202,104450.0,104440.0,0.1728333]
[1734339302314,0.23128429,104450.0,104440.0,0.1728333]
[1734339302522,0.29357202,104450.0,104440.0,0.1728333]
[1734339303873,0.23128429,104450.0,104440.0,0.1728333]
[1734339304078,0.29357202,104450.0,104440.0,0.1728333]
[1734339305586,0.392297,104440.0,104430.0,0.00704554]
[1734339305790,0.80034466,104440.0,104430.0,0.0020707]
[1734339305990,1.01363329,104440.0,104430.0,0.0010863]
[1734339306217,0.88566011,104440.0,104430.0,0.0010863]
[1734339306345,0.88905783,104440.0,104430.0,0.0010863]
[1734339306552,1.10780855,104440.0,104430.0,0.0010863]
[1734339307211,0.97983537,104440.0,104430.0,0.0010863]
[1734339308238,0.339415,104430.0,104420.0,0.00789265]
[1734339308492,0.44912863,104430.0,104420.0,0.00789265]
[1734339308697,0.31990136,104430.0,104420.0,0.00789265]
[1734339309400,0.51141636,104430.0,104420.0,0.00789265]
[1734339310805,0.57813931,104430.0,104420.0,0.00789265]
[1734339311217,0.51141636,104430.0,104420.0,0.00789265]
[1734339314560,0.22824584,104430.0,104420.0,0.00789265]
[1734339314760,0.22824584,104430.0,104420.0,0.17238]
[1734339314971,0.18124584,104430.0,104420.0,0.17238]
[1734339315175,0.18244285,104430.0,104420.0,0.17238]
[1734339316007,0.18244285,104430.0,104410.0,0.65324268]
[1734339316255,0.0942907,104420.0,104410.0,0.45846468]
[1734339316872,0.0942907,104420.0,104410.0,0.45855098]
[1734339317492,0.09485402,104420.0,104410.0,0.45855098]
[1734339318586,0.00056332,104420.0,104410.0,0.52083871]
[1734339318968,0.00056332,104420.0,104410.0,0.53131423]
[1734339321052,0.00056332,104420.0,104410.0,0.58591423]
[1734339322214,0.00056332,104420.0,104410.0,0.5236265]
[1734339325470,0.00056332,104420.0,104410.0,0.5097265]
[1734339329691,0.00056332,104420.0,104410.0,0.57201423]
[1734339330682,0.00060332,104420.0,104410.0,0.57201423]
[1734339332468,0.00060332,104420.0,104410.0,0.53131423]
[1734339332907,0.00060332,104420.0,104410.0,0.4690265]
[1734339333513,0.12440332,104420.0,104410.0,0.4640265]
[1734339333871,0.12440332,104420.0,104410.0,0.51032224]
[1734339337248,0.12440332,104420.0,104410.0,0.57260997]
[1734339337448,0.12440332,104420.0,104410.0,0.51032224]
[1734339337874,0.12440332,104420.0,104410.0,0.59612135]
[1734339338064,0.12440332,104420.0,104410.0,0.51032224]
[1734339338265,0.12440332,104420.0,104410.0,0.59612135]
[1734339338607,0.12440332,104420.0,104410.0,0.51032224]
[1734339339042,0.12440332,104420.0,104410.0,0.59612135]
[1734339340299,0.12440332,104420.0,104410.0,0.59594625]
[1734339340676,0.12440332,104420.0,104410.0,0.51014714]
[1734339343344,0.21869402,104420.0,104410.0,0.51014714]
[1734339345518,0.22774916,104420.0,104410.0,0.49967162]
[1734339345719,0.22774916,104420.0,104410.0,0.34967162]
[1734339348079,0.29003689,104420.0,104410.0,0.17728262]
[1734339348469,0.60319856,104420.0,104410.0,8.63e-05]
[1734339349117,0.53480348,104420.0,104410.0,8.63e-05]
[1734339349273,0.47251575,104420.0,104410.0,8.63e-05]
[1734339349807,0.55780348,104420.0,104410.0,8.63e-05]
[1734339350218,0.55780348,104420.0,104410.0,0.00331709]
[1734339350423,0.55780348,104420.0,104410.0,8.63e-05]
[1734339350848,0.64330787,104420.0,104410.0,8.63e-05]
[1734339351050,0.64334954,104420.0,104410.0,0.00331513]
[1734339351182,0.55797608,104420.0,104410.0,0.00331513]
[1734339351383,0.55797608,104420.0,104410.0,8.63e-05]
[1734339352387,0.55797608,104420.0,104410.0,0.00331398]
[1734339353145,0.65215134,104420.0,104410.0,0.00331398]
[1734339353348,0.18978773,104410.0,104400.0,0.2385979]
[1734339353525,0.28527583,104410.0,104400.0,0.2385979]
[1734339353732,0.28407843,104410.0,104400.0,0.2376093]
[1734339353985,0.47563043,104410.0,104400.0,0.2376093]
[1734339354371,0.14188773,104400.0,104390.0,0.33591855]
[1734339354583,0.28407589,104400.0,104390.0,0.16349755]
[1734339354787,0.28287843,104400.0,104390.0,0.16349755]
[1734339356579,0.29193357,104400.0,104390.0,0.16349755]
[1734339356965,0.28287843,104400.0,104390.0,0.16349755]
[1734339357507,0.29193357,104400.0,104390.0,0.16349755]
[1734339357879,0.22964584,104400.0,104390.0,0.16349755]
[1734339358554,0.2205907,104400.0,104390.0,0.22578528]
[1734339358759,0.2205907,104400.0,104390.0,0.16848121]
[1734339359204,0.13795514,104410.0,104390.0,0.57561394]
[1734339359407,0.23224584,104410.0,104400.0,0.172413]
[1734339361531,0.2231907,104410.0,104400.0,0.172413]
[1734339363127,0.2231907,104410.0,104400.0,0.1724993]
[1734339369593,0.2231907,104410.0,104390.0,0.48971436]
[1734339370002,0.2231907,104410.0,104400.0,0.172413]
[1734339371777,0.30453357,104410.0,104400.0,0.172413]
[1734339374381,0.30453357,104410.0,104400.0,0.1724994]
[1734339374800,0.30470637,104410.0,104400.0,0.1724994]
[1734339376167,0.24241864,104410.0,104400.0,0.1724994]
[1734339382935,0.30470637,104410.0,104400.0,0.1724994]
[1734339384850,0.24241864,104410.0,104400.0,0.1724994]
[1734339387821,0.30470637,104410.0,104400.0,0.1724994]
[1734339392106,0.24241864,104410.0,104400.0,0.1724994]
[1734339398480,0.1044635,104410.0,104400.0,0.38478713]
[1734339398817,0.1044635,104410.0,104400.0,0.48183849]
[1734339400328,0.1044635,104410.0,104400.0,0.47079215]
[1734339401879,0.1044635,104410.0,104400.0,0.40850442]
[1734339402055,0.1044635,104410.0,104400.0,0.47080155]
[1734339402056,0.0101728,104410.0,104400.0,0.47080155]
[1734339402372,0.0101728,104410.0,104400.0,1.0139083]
[1734339402530,0.0101728,104410.0,104400.0,0.88488666]
[1734339402934,0.0101728,104410.0,104400.0,0.71285781]
[1734339403375,0.0101728,104410.0,104400.0,0.77526206]
[1734339404140,0.07576732,104430.0,104410.0,0.37712988]
[1734339404351,0.17005802,104430.0,104410.0,0.88220796]
[1734339404556,0.17005802,104430.0,104410.0,0.71026812]
[1734339404818,0.17005802,104430.0,104410.0,0.88266512]
[1734339405066,0.17005802,104430.0,104420.0,0.32238]
[1734339406009,0.29109796,104430.0,104420.0,0.32238]
[1734339406120,0.28990089,104430.0,104420.0,0.32238]
[1734339406321,0.22761316,104430.0,104420.0,0.32238]
[1734339407148,0.21855802,104430.0,104420.0,0.32238]
[1734339408222,0.21873062,104430.0,104420.0,0.32238]
[1734339409070,0.28101835,104430.0,104420.0,0.32238]
[1734339409214,0.21873062,104430.0,104420.0,0.32238]
[1734339410043,0.21877062,104430.0,104420.0,0.32238]
[1734339416792,0.21877062,104430.0,104420.0,0.3325855]
[1734339418778,0.17027062,104430.0,104420.0,0.3325855]
[1734339419302,0.07597992,104430.0,104420.0,0.3325855]
[1734339422263,0.07597992,104430.0,104420.0,0.0102055]
[1734339422726,0.07597992,104430.0,104420.0,0.17238]
[1734339424085,0.07597992,104430.0,104420.0,0.32238]
[1734339428256,0.21657062,104430.0,104420.0,0.32238]
[1734339431392,0.21657062,104430.0,104420.0,0.3224663]
[1734339434038,0.12227992,104430.0,104420.0,0.3224663]
[1734339434434,0.12227992,104430.0,104420.0,0.3124663]
[1734339435305,0.12227992,104430.0,104420.0,8.63e-05]
[1734339435508,0.12227992,104430.0,104420.0,0.1724663]
[1734339436752,0.12227992,104430.0,104420.0,0.23475403]
[1734339437366,0.12227992,104430.0,104420.0,0.1724663]
[1734339437585,0.07597992,104430.0,104420.0,0.23475403]
[1734339438020,0.07597992,104430.0,104420.0,0.1724663]
[1734339442454,0.07597992,104430.0,104420.0,0.3224663]
[1734339445278,0.07597992,104430.0,104420.0,0.47066385]
[1734339445912,0.07597992,104430.0,104420.0,0.40837612]
[1734339446303,0.0002126,104430.0,104420.0,0.47066385]
[1734339446562,0.0002126,104430.0,104420.0,0.59952859]
[1734339447204,0.0002126,104430.0,104420.0,0.77134824]
[1734339447862,0.0002126,104430.0,104420.0,0.77150473]
[1734339448077,0.0002126,104430.0,104420.0,0.709217]
[1734339448308,0.0002126,104430.0,104420.0,0.92399156]
[1734339448530,0.0002126,104430.0,104420.0,0.83792525]
[1734339448996,0.0002126,104430.0,104420.0,0.98877041]
[1734339449209,0.0002126,104430.0,104420.0,0.92177441]
[1734339449422,0.0002126,104430.0,104420.0,0.86556023]
[1734339450050,0.0002126,104430.0,104420.0,0.78393969]
[1734339450255,0.0002126,104430.0,104420.0,0.90851515]
[1734339450465,0.0002126,104430.0,104420.0,0.65078567]
[1734339450671,6e-07,104430.0,104420.0,0.65078567]
[1734339450886,6e-07,104430.0,104420.0,0.95889174]
[1734339452765,6e-07,104430.0,104420.0,0.95860942]
[1734339452981,6e-07,104430.0,104420.0,0.83403396]
[1734339453205,6e-07,104430.0,104420.0,0.93729465]
[1734339454462,0.0001732,104430.0,104420.0,0.93729465]
[1734339454689,0.0001732,104430.0,104420.0,0.6794709]
[1734339455124,0.0001732,104430.0,104420.0,0.56801919]
[1734339455346,0.0001732,104430.0,104420.0,0.59998724]
[1734339455549,0.0001732,104430.0,104420.0,0.72885282]
[1734339455977,0.0001732,104430.0,104420.0,0.87704813]
[1734339456639,0.0001732,104430.0,104420.0,1.02704813]
[1734339456846,0.23735163,104430.0,104420.0,0.92381171]
[1734339457066,0.28515163,104430.0,104420.0,0.40837005]
[1734339457288,0.2228639,104430.0,104420.0,0.1724663]
[1734339458984,0.2228639,104430.0,104420.0,0.3224663]
[1734339464782,0.1285732,104430.0,104420.0,0.3224663]
[1734339464985,0.1285732,104430.0,104420.0,0.4114039]
[1734339465467,0.1285732,104430.0,104420.0,0.54028447]
[1734339465673,0.1285732,104430.0,104420.0,0.53726725]
[1734339465802,0.1285732,104430.0,104420.0,0.70910801]
[1734339467271,0.1285732,104430.0,104420.0,0.3224663]
[1734339468039,0.1285732,104430.0,104420.0,0.83791828]
[1734339468243,0.0001732,104430.0,104420.0,0.97843228]
[1734339468441,0.0001732,104430.0,104420.0,0.86656824]
[1734339469104,0.0001732,104430.0,104420.0,0.96085894]
[1734339470257,0.0001732,104430.0,104420.0,0.67682643]
[1734339470466,0.0001732,104430.0,104420.0,0.59089577]
[1734339470666,0.0001732,104430.0,104420.0,0.76327577]
[1734339471320,0.0001732,104430.0,104420.0,0.97804743]
[1734339471556,0.0001732,104430.0,104420.0,0.76327577]
[1734339471944,0.0001732,104430.0,104420.0,0.75872293]
[1734339472947,0.0001732,104430.0,104420.0,0.75863007]
[1734339474798,0.0001732,104430.0,104420.0,0.65519133]
[1734339475005,0.0001732,104430.0,104420.0,0.56932307]
[1734339475170,0.0001732,104430.0,104420.0,0.65519188]
[1734339475583,0.0001732,104430.0,104420.0,0.66433937]
[1734339475787,0.0001732,104430.0,104420.0,0.75020541]
[1734339475985,0.0001732,104430.0,104420.0,0.75020613]
[1734339476184,0.0001732,104430.0,104420.0,0.75020541]
[1734339476387,0.0001732,104430.0,104420.0,0.66433937]
[1734339477201,0.0001732,104430.0,104420.0,0.66442567]
[1734339477498,0.0001732,104430.0,104420.0,0.66438472]
[1734339477706,0.0001732,104430.0,104420.0,0.75024826]
[1734339478122,0.0001732,104430.0,104420.0,0.71755716]
[1734339478325,0.0001732,104430.0,104420.0,0.63169362]
[1734339478730,0.0001732,104430.0,104420.0,0.54582852]
[1734339478932,0.0001732,104430.0,104420.0,0.77988202]
[1734339479060,0.0001732,104430.0,104420.0,0.69401882]
[1734339480492,0.0001732,104430.0,104420.0,0.87417367]
[1734339482858,0.0001732,104430.0,104420.0,0.74952327]
[1734339483083,0.0001732,104430.0,104420.0,0.87417367]
[1734339484101,0.0001732,104430.0,104420.0,0.74952327]
[1734339484337,0.0001732,104430.0,104420.0,0.87417367]
[1734339484744,0.0001732,104430.0,104420.0,0.87416299]
[1734339489066,0.0001732,104430.0,104420.0,0.87420166]
[1734339491579,0.0001732,104430.0,104420.0,0.70246092]
[1734339493474,0.0001732,104430.0,104420.0,0.70250348]
[1734339495566,0.0001732,104430.0,104420.0,0.89370855]
[1734339495984,0.0001732,104430.0,104420.0,1.06608855]
[1734339496611,0.0001732,104430.0,104420.0,1.06608662]
[1734339496817,0.0001732,104430.0,104420.0,0.93725227]
[1734339498073,2e-07,104430.0,104420.0,1.49635231]
[1734339498283,2e-07,104430.0,104420.0,1.32457443]
[1734339498452,2e-07,104430.0,104420.0,1.26687728]
[1734339500361,2e-07,104430.0,104420.0,1.26868374]
[1734339500780,0.1240726,104450.0,104440.0,0.00948108]
[1734339500986,0.1240726,104450.0,104440.0,0.34876686]
[1734339501192,0.1240726,104450.0,104440.0,0.65196486]
[1734339501403,0.1240726,104450.0,104440.0,0.58963966]
[1734339502247,0.1240726,104450.0,104440.0,0.5037664]
[1734339502477,0.1240726,104450.0,104440.0,0.58960781]
[1734339503179,0.1240726,104450.0,104440.0,0.65193301]
[1734339504714,0.1240726,104450.0,104440.0,0.58960781]
[1734339505570,0.1240726,104450.0,104440.0,0.89005276]
[1734339506451,0.1240726,104450.0,104440.0,0.76127697]
[1734339506663,0.1240726,104450.0,104440.0,0.89005276]
[1734339506865,0.1240726,104450.0,104440.0,0.88512796]
[1734339507729,0.1240726,104450.0,104440.0,0.89487659]
[1734339514979,0.1240726,104450.0,104440.0,0.54274473]
[1734339515137,0.1240726,104450.0,104440.0,0.69594273]
[1734339516572,0.1240726,104450.0,104440.0,0.31115553]
[1734339517199,0.12358012,104450.0,104440.0,0.31115553]
[1734339518661,0.12358012,104450.0,104440.0,0.46115553]
[1734339518950,0.12362012,104450.0,104440.0,0.46115553]
[1734339520145,0.1191878,104450.0,104440.0,0.46115553]
[1734339521913,0.1193604,104450.0,104440.0,0.46115553]
[1734339522550,0.1193604,104450.0,104440.0,0.52348073]
[1734339524019,0.1188604,104450.0,104440.0,0.52348073]
[1734339526599,0.1188604,104450.0,104440.0,0.8019319]
[1734339529132,0.1188604,104450.0,104440.0,0.60938964]
[1734339529344,0.1188604,104450.0,104440.0,0.95297487]
[1734339531561,0.1188604,104450.0,104440.0,0.82413041]
[1734339531763,0.1188604,104450.0,104440.0,0.95298913]
[1734339532176,0.1188604,104450.0,104440.0,0.82413041]
[1734339533008,0.1188604,104450.0,104440.0,0.95299485]
[1734339533213,0.1188604,104450.0,104440.0,0.82413041]
[1734339533957,0.1188604,104450.0,104440.0,0.76188873]
[1734339539499,0.1188604,104450.0,104440.0,0.590059]
[1734339543152,0.1811856,104450.0,104440.0,0.5277338]
[1734339543355,0.37084833,104450.0,104440.0,0.54006937]
[1734339543554,0.2149571,104450.0,104440.0,0.54038929]
[1734339543770,0.2649571,104450.0,104440.0,0.21510709]
[1734339543981,0.2649571,104450.0,104440.0,0.08603838]
[1734339544197,0.2649571,104450.0,104430.0,0.52159839]
[1734339544405,0.15781285,104440.0,104430.0,0.52159739]
[1734339544609,0.0942907,104440.0,104430.0,0.39252868]
[1734339545019,0.0942907,104440.0,104430.0,0.4564903]
[1734339545650,0.09548765,104440.0,104430.0,0.4564903]
[1734339546504,0.22158765,104440.0,104430.0,0.4564903]
[1734339546721,0.2203907,104440.0,104430.0,0.4564903]
[1734339551136,0.2203907,104440.0,104430.0,0.15]
[1734339551550,0.2203907,104440.0,104430.0,0.303202]
[1734339551957,0.2203907,104440.0,104430.0,0.456406]
[1734339557069,0.2203907,104440.0,104430.0,0.4564923]
[1734339561175,0.3327159,104440.0,104430.0,8.63e-05]
[1734339561538,0.3327159,104440.0,104430.0,0.1532983]
[1734339562249,0.3950411,104440.0,104430.0,8.63e-05]
[1734339562381,0.65812795,104440.0,104430.0,8.63e-05]
[1734339562586,0.60812795,104440.0,104430.0,8.63e-05]
[1734339567610,0.61783353,104440.0,104430.0,8.63e-05]
[1734339568299,0.49318313,104440.0,104430.0,8.63e-05]
[1734339568435,0.61783353,104440.0,104430.0,8.63e-05]
[1734339568637,0.61800613,104440.0,104430.0,8.63e-05]
[1734339569087,0.54641628,104440.0,104430.0,8.63e-05]
[1734339570895,0.56941628,104440.0,104430.0,8.63e-05]
[1734339571088,0.61941628,104440.0,104430.0,8.63e-05]
[1734339575509,0.47176588,104440.0,104430.0,8.63e-05]
[1734339575729,0.59641628,104440.0,104430.0,8.63e-05]
[1734339576840,0.129,104420.0,104410.0,0.303235]
[1734339577066,0.22448789,104420.0,104410.0,0.494778]
[1734339577258,0.2232907,104420.0,104410.0,0.494778]
[1734339579901,0.2232907,104420.0,104410.0,0.4948643]
[1734339592163,0.2234633,104420.0,104410.0,0.4948643]
[1734339593173,0.2234633,104420.0,104410.0,0.41144176]
[1734339593383,0.2234633,104420.0,104410.0,0.3831723]
[1734339593606,0.2234633,104420.0,104410.0,0.4454975]
[1734339594196,0.2234633,104420.0,104410.0,0.3831723]
[1734339599023,0.2234633,104420.0,104410.0,0.5331723]
[1734339600625,0.2234633,104420.0,104410.0,0.5954975]
[1734339600626,0.1734633,104420.0,104410.0,0.5954975]
[1734339600833,0.0001726,104420.0,104410.0,0.5954975]
[1734339603562,0.0001726,104420.0,104410.0,0.68140138]
[1734339606318,0.0001726,104420.0,104410.0,0.74490138]
[1734339606520,0.0001726,104420.0,104410.0,0.87375721]
[1734339610338,0.0001726,104420.0,104410.0,1.17442082]
[1734339612242,0.0001726,104420.0,104410.0,1.23674602]
[1734339612451,0.0001726,104420.0,104410.0,1.37903672]
[1734339612675,0.0001726,104420.0,104410.0,1.25018089]
[1734339612886,6e-07,104420.0,104410.0,1.83628089]
[1734339613091,6e-07,104420.0,104410.0,1.67487346]
[1734339613324,6e-07,104420.0,104410.0,1.67491082]
[1734339613524,6e-07,104420.0,104410.0,2.22540236]
[1734339613727,6e-07,104420.0,104410.0,1.9800803]
[1734339615104,6e-07,104420.0,104410.0,1.8554299]
[1734339615317,0.00458094,104430.0,104410.0,1.60202594]
[1734339615520,0.00458094,104430.0,104420.0,0.55618032]
[1734339615729,0.00458094,104430.0,104420.0,0.61850552]
[1734339616380,0.00458094,104430.0,104420.0,0.48971773]
[1734339616910,0.00458094,104430.0,104420.0,0.48970235]
[1734339617734,0.00458094,104430.0,104420.0,0.55202755]
[1734339618921,0.00458094,104430.0,104420.0,0.68079228]
[1734339619321,0.00458094,104430.0,104420.0,0.55202755]
[1734339619968,0.00458094,104430.0,104420.0,0.68079228]
[1734339620187,0.00458094,104430.0,104420.0,0.55202755]
[1734339620356,0.00458094,104430.0,104420.0,0.83858298]
[1734339620576,0.00458094,104430.0,104420.0,0.88738298]
[1734339621172,0.00458094,104430.0,104420.0,1.48567085]
[1734339621606,0.00458094,104430.0,104420.0,1.42334565]
[1734339622795,0.00458094,104430.0,104420.0,1.43318417]
[1734339622999,0.0002126,104450.0,104430.0,0.596507]
[1734339623302,0.0002126,104450.0,104440.0,0.3066159]
[1734339623465,0.0002126,104450.0,104440.0,0.5604381]
[1734339627975,0.0002126,104450.0,104440.0,0.4038222]
[1734339629849,0.0002126,104450.0,104440.0,0.4661474]
[1734339630331,0.0002126,104450.0,104440.0,0.4038222]
[1734339631207,0.0002126,104450.0,104440.0,0.41339566]
[1734339632024,0.0002126,104450.0,104440.0,0.47572086]
[1734339632690,6e-07,104450.0,104440.0,0.63351156]
[1734339632897,6e-07,104450.0,104440.0,1.33489692]
[1734339633107,23.90059367,104460.0,104450.0,0.52236436]
[1734339633331,23.82315567,104460.0,104450.0,0.70224264]
[1734339633555,23.77786367,104460.0,104450.0,0.83062401]
[1734339633759,23.77786367,104460.0,104450.0,0.97853679]
[1734339634162,23.77786367,104460.0,104450.0,1.04363373]
[1734339634403,23.68269734,104460.0,104450.0,0.95800607]
[1734339634606,23.68269734,104460.0,104450.0,0.95294591]
[1734339635259,23.68269734,104460.0,104450.0,0.82456454]
[1734339635474,23.64440534,104460.0,104450.0,0.82456454]
[1734339635676,23.58696734,104460.0,104450.0,0.82456454]
[1734339635892,23.56216734,104460.0,104450.0,1.36066454]
[1734339636129,23.53551815,104460.0,104450.0,5.33654289]
[1734339636333,23.47808015,104460.0,104450.0,5.52629023]
[1734339636538,23.43978815,104460.0,104450.0,5.22480607]
[1734339636965,23.43978815,104460.0,104450.0,4.72680607]
[1734339637186,23.43978815,104460.0,104450.0,4.34636454]
[1734339637655,23.36320415,104460.0,104450.0,4.33236454]
[1734339637881,23.36320415,104460.0,104450.0,4.06036454]
[1734339637882,23.34405815,104460.0,104450.0,4.06036454]
[1734339638085,23.34405815,104460.0,104450.0,3.88436454]
[1734339638295,23.34405815,104460.0,104450.0,1.76481704]
[1734339638507,23.34405815,104460.0,104450.0,1.11674337]
[1734339639155,23.34423075,104460.0,104450.0,1.11674337]
[1734339642046,23.34423075,104460.0,104450.0,1.06674337]
[1734339642357,23.34423075,104460.0,104450.0,1.11674337]
[1734339643623,23.34423075,104460.0,104450.0,1.06674337]
[1734339645242,23.34423075,104460.0,104450.0,0.53064337]
[1734339647550,23.34427075,104460.0,104450.0,0.53064337]
[1734339648335,23.34427075,104460.0,104450.0,1.06674337]
[1734339650391,23.34427075,104460.0,104450.0,1.06474337]
[1734339650592,23.34427075,104460.0,104450.0,1.06482967]
[1734339654872,23.42357075,104460.0,104450.0,1.06482967]
[1734339660327,23.42357075,104460.0,104450.0,1.15041645]
[1734339660771,23.42357075,104460.0,104450.0,1.15047069]
[1734339662230,23.42357075,104460.0,104450.0,1.11787733]
[1734339663276,23.42357075,104460.0,104450.0,1.24633886]
[1734339663475,23.42357075,104460.0,104450.0,0.71023886]
[1734339665237,23.42357075,104460.0,104450.0,0.8815209]
[1734339665720,23.42357075,104460.0,104450.0,0.57694989]
[1734339665878,23.47197075,104460.0,104450.0,0.1915653]
[1734339667285,23.62854176,104460.0,104450.0,0.1915653]
[1734339667695,23.56626145,104460.0,104450.0,0.1915653]
[1734339669109,23.56626145,104460.0,104450.0,0.3415653]
[1734339669487,23.62854176,104460.0,104450.0,0.3415653]
[1734339670257,23.61626145,104460.0,104450.0,0.3415653]
[1734339673540,23.61626145,104460.0,104450.0,0.07865459]
[1734339673749,0.0788,104450.0,104440.0,0.39263576]
[1734339673924,0.07999678,104450.0,104440.0,0.39263576]
[1734339674920,0.12879678,104450.0,104440.0,0.39263576]
[1734339675547,0.12879678,104450.0,104440.0,0.54263576]
[1734339678060,0.12879678,104450.0,104440.0,0.52683827]
[1734339679335,0.22308748,104450.0,104440.0,0.52683827]
[1734339679557,0.2218907,104450.0,104440.0,0.52683827]
[1734339679676,0.2218907,104450.0,104440.0,0.53645696]
[1734339680086,0.39101784,104450.0,104440.0,0.38645696]
[1734339680293,0.39101784,104450.0,104440.0,0.37683827]
[1734339680903,0.31685653,104450.0,104440.0,0.37683827]
[1734339684294,0.31685653,104450.0,104440.0,0.12978027]
[1734339684499,0.31685653,104450.0,104440.0,0.191488]
[1734339684712,0.1296,104440.0,104430.0,0.483994]
[1734339684916,0.32005356,104440.0,104430.0,0.483994]
[1734339685125,0.31885653,104440.0,104430.0,0.483012]
[1734339685336,0.2238907,104440.0,104430.0,0.483012]
[1734339690379,0.2239307,104440.0,104430.0,0.483012]
[1734339692874,0.2239307,104440.0,104430.0,0.291506]
[1734339694003,0.28627883,104440.0,104430.0,0.291506]
[1734339695933,0.28627883,104440.0,104430.0,0.2915923]
[1734339697445,0.34862696,104440.0,104430.0,0.1000863]
[1734339697829,0.54012396,104440.0,104430.0,0.1000863]
[1734339698645,0.63429922,104440.0,104430.0,0.1000863]
[1734339702274,0.65247209,104440.0,104430.0,0.1000863]
[1734339702899,0.4654277,104440.0,104430.0,0.1000863]
[1734339703097,0.59012396,104440.0,104430.0,0.1000863]
[1734339703307,0.65247209,104440.0,104430.0,0.1000863]
[1734339703837,0.59012396,104440.0,104430.0,0.1000863]
[1734339704048,0.56047018,104440.0,104430.0,0.1000863]
[1734339704249,0.60512317,104440.0,104430.0,0.1000863]
[1734339704363,0.56047018,104440.0,104430.0,0.1000863]
[1734339705033,0.64568984,104440.0,104430.0,0.1000863]
[1734339706421,0.56047018,104440.0,104430.0,0.1000863]
[1734339708100,0.64568984,104440.0,104430.0,0.1000863]
[1734339708829,0.64586244,104440.0,104430.0,0.1000863]
[1734339709031,0.65556132,104440.0,104430.0,0.1000863]
[1734339709777,0.78352111,104440.0,104430.0,0.1000863]
[1734339710578,0.95406467,104440.0,104430.0,0.1000863]
[1734339710949,0.78352111,104440.0,104430.0,0.1000863]
[1734339711161,0.65561344,104440.0,104430.0,0.1000863]
[1734339711575,0.78352111,104440.0,104430.0,0.1000863]
[1734339712011,0.68847863,104440.0,104430.0,0.1000863]
[1734339712217,0.78352111,104440.0,104430.0,0.1000863]
[1734339712430,0.44698163,104440.0,104430.0,0.1000863]
[1734339713053,0.31907396,104440.0,104430.0,0.1000863]
[1734339713304,0.2241033,104440.0,104430.0,0.2916013]
[1734339713737,0.2741033,104440.0,104430.0,0.2916013]
[1734339713959,0.2241033,104440.0,104430.0,0.2916013]
[1734339714845,0.1445033,104440.0,104430.0,0.38664378]
[1734339715054,0.1445033,104440.0,104430.0,0.53664378]
[1734339715055,0.0945033,104440.0,104430.0,0.53664378]
[1734339715261,0.0002126,104440.0,104430.0,0.4416013]
[1734339715467,0.0002126,104440.0,104430.0,0.53664378]
[1734339715672,0.0002126,104440.0,104430.0,0.4416013]
[1734339716704,0.0002126,104440.0,104430.0,0.53664378]
[1734339718483,0.0002126,104440.0,104430.0,0.7001668]
[1734339718694,0.0002126,104440.0,104430.0,0.60512432]
[1734339718906,0.0002126,104440.0,104430.0,0.61476731]
[1734339720329,0.0002126,104440.0,104430.0,0.51972483]
[1734339720579,0.0002126,104440.0,104430.0,0.61476731]
[1734339726034,6e-07,104440.0,104430.0,0.85340049]
[1734339726261,6e-07,104440.0,104430.0,0.93912372]
[1734339726468,6e-07,104440.0,104430.0,1.06770857]
[1734339726868,6e-07,104440.0,104430.0,0.93912372]
[1734339727073,6e-07,104440.0,104430.0,1.23915504]
[1734339727310,2e-07,104450.0,104440.0,0.2135]
[1734339727515,2e-07,104450.0,104440.0,0.53782383]
[1734339727724,2e-07,104450.0,104440.0,0.72932083]
[1734339728979,2e-07,104450.0,104440.0,0.64363018]
[1734339732377,2e-07,104450.0,104440.0,0.53083018]